fUSD/lending_fUSD_20250617
["ID","MTS","AMOUNT","RATE_DAILY","PERIOD"]
[366267850,1750169438851,-150.54630424,0.00014288,2]
[366267853,1750169438862,-191.45003469,0.00014288,2]
[366267857,1750169438873,-383.39860728,0.00014288,2]
[366267861,1750169438891,-150.0,0.00014288,2]
[366267865,1750169438902,-1760.0,0.00014315,2]
[366267867,1750169438913,-150.0,0.00014315,2]
[366267869,1750169438924,-150.0,0.00014315,2]
[366267871,1750169438935,-150.0,0.00014343,2]
[366267872,1750169438946,-193.97108332,0.00014343,2]
[366267875,1750169438958,-166.68,0.00014343,2]
[366267877,1750169438969,-1051.0,0.00014383,2]
[366267879,1750169438979,-201.0,0.00014408,4]
[366267881,1750169438990,-500.0,0.0001441,2]
[366267883,1750169439002,-500.0,0.0001441,2]
[366267885,1750169439012,-151.0,0.00014412,2]
[366267887,1750169439023,-1680.0,0.00014427,2]
[366267889,1750169439034,-897.0,0.00014452,2]
[366267891,1750169439045,-364.76,0.00014496,2]
[366267894,1750169439056,-500.0,0.000145,2]
[366267896,1750169439067,-500.0,0.00014521,2]
[366267898,1750169439077,-542.0,0.00014521,2]
[366267900,1750169439088,-1000.0,0.00014582,2]
[366267902,1750169439099,-300.0,0.00014586,2]
[366267904,1750169439109,-458.0,0.0001459,2]
[366267906,1750169439120,-230.7904659,0.00014608,2]
[366267908,1750169439131,-167.95710465,0.0001462,2]
[366267911,1750169439142,-1000.0,0.00014636,2]
[366267913,1750169439152,-1413.0,0.00014659,2]
[366267915,1750169439163,-353.33789906,0.00014686,2]
[366267917,1750169439174,-250.0,0.0001469,2]
[366267919,1750169439184,-300.0,0.0001469,2]
[366267921,1750169439195,-1405.987957,0.00014699,2]
[366267923,1750169439208,-1000.0,0.00014727,2]
[366267925,1750169439219,-171.0,0.00014727,2]
[366267927,1750169439230,-921.0,0.00014796,2]
[366267930,1750169439241,-408.0,0.00014865,2]
[366267932,1750169439253,-250.0,0.00014879,2]
[366267934,1750169439264,-255.0,0.00014925,2]
[366267936,1750169439275,-1246.0,0.00014934,2]
[366267938,1750169439286,-2500.0,0.00014944,2]
[366267940,1750169439298,-2500.0,0.00014944,2]
[366267943,1750169439309,-166.59,0.00014951,2]
[366267945,1750169439325,-201.0,0.00014971,5]
[366267947,1750169439336,-1423.59234517,0.00015,2]
[366267949,1750169439347,-250.0,0.00015,2]
[366267951,1750169439359,-159.03,0.00015,2]
[366267954,1750169439370,-1002.62,0.00015,2]
[366267956,1750169439382,-823.0,0.00015003,2]
[366267958,1750169439393,-1000.0,0.00015014,2]
[366267960,1750169439404,-167.95710465,0.0001503,2]
[366267962,1750169439415,-150.45,0.00015068,2]
[366267964,1750169439426,-1698.0,0.00015072,2]
[366267966,1750169439436,-353.33789906,0.00015129,2]
[366267968,1750169439447,-283.0,0.0001514,2]
[366267970,1750169439458,-168.0,0.00015189,2]
[366267973,1750169439469,-1379.0,0.00015209,2]
[366267975,1750169439480,-893.0,0.00015278,2]
[366267977,1750169439492,-230.7904659,0.00015315,2]
[366267979,1750169439502,-1431.0,0.00015347,2]
[366267981,1750169439513,-151.0,0.00015349,2]
[366267983,1750169439524,-1957.856,0.00015349,2]
[366267985,1750169439536,-195.44589601,0.00015349,2]
[366267987,1750169439547,-700.0,0.00015349,2]
[366267989,1750169439558,-373.2036376,0.00015349,2]
[366267991,1750169439569,-207.4,0.00015349,2]
[366267994,1750169439581,-2030.296672,0.00015404,2]
[366268016,1750169439806,-350.0,0.00015416,2]
[366268018,1750169439818,-167.95710465,0.0001544,2]
[366268020,1750169439829,-168.0,0.00015445,2]
[366268022,1750169439840,-177.47,0.00015446,2]
[366268023,1750169439852,-2105.41764886,0.00015459,2]
[366268024,1750169439863,-500.0,0.000155,3]
[366268025,1750169439874,-4957.27065439,0.000155,2]
[366268026,1750169439886,-4957.27065414,0.000155,2]
[366268027,1750169439896,-4957.27065414,0.000155,2]
[366268028,1750169439907,-4957.27065414,0.000155,2]
[366268029,1750169439919,-4957.27065414,0.000155,2]
[366268030,1750169439931,-4957.27065414,0.000155,2]
[366268032,1750169439943,-4957.27065414,0.000155,2]
[366268034,1750169439954,-4957.27065414,0.000155,2]
[366268036,1750169439966,-2183.31810187,0.00015514,2]
[366268039,1750169439977,-168.0,0.00015529,2]
[366268041,1750169439988,-201.0,0.00015534,6]
[366268043,1750169440004,-4957.27065414,0.00015555,2]
[366268045,1750169440016,-1000.0,0.00015557,2]
[366268047,1750169440028,-2264.10087164,0.00015569,2]
[366268049,1750169440039,-353.33789906,0.00015571,2]
[366268051,1750169440050,-2347.87260389,0.00015624,2]
[366268053,1750169440061,-1272.0,0.00015649,2]
[366268055,1750169440073,-2434.74389024,0.00015679,2]
[366268058,1750169440084,-166.67,0.00015696,2]
[366268060,1750169440095,-168.0,0.00015707,2]
[366268062,1750169440106,-168.0,0.0001571,2]
[366268064,1750169440116,-168.0,0.00015716,2]
[366268066,1750169440127,-2524.82941417,0.00015734,2]
[366268068,1750169440138,-4957.27065414,0.00015762,2]
[366268070,1750169440149,-600.0,0.00015772,4]
[366268072,1750169440160,-168.0,0.00015776,2]
[366268075,1750169440171,-168.0,0.00015782,2]
[366268077,1750169440182,-2618.2481025,0.00015789,2]
[366268079,1750169440194,-1160.0,0.00015791,2]
[366268081,1750169440206,-7113.0,0.00015791,2]
[366268083,1750169440218,-155.0,0.00015791,2]
[366268085,1750169440230,-814.097,0.00015791,2]
[366268088,1750169440243,-4091.0,0.00015791,2]
[366268090,1750169440255,-2715.12328229,0.00015844,2]
[366268092,1750169440266,-167.95710465,0.00015849,2]
[366268094,1750169440277,-2351.0,0.0001587,2]
[366268096,1750169440289,-2815.58284374,0.00015899,2]
[366268098,1750169440300,-312.4394376,0.000159,2]
[366268100,1750169440311,-312.43943744,0.000159,2]
[366268102,1750169440323,-312.43943744,0.000159,2]
[366268104,1750169440334,-312.43943744,0.000159,2]
[366268106,1750169440345,-312.43943744,0.000159,2]
[366268110,1750169440355,-312.43943744,0.000159,2]
[366268113,1750169440367,-312.43943744,0.000159,2]
[366268115,1750169440379,-312.43943744,0.000159,2]
[366268117,1750169440390,-312.43943744,0.000159,2]
[366268119,1750169440400,-312.43943744,0.000159,2]
[366268121,1750169440411,-312.43943744,0.000159,2]
[366268123,1750169440421,-312.43943744,0.000159,2]
[366268125,1750169440432,-312.43943744,0.000159,2]
[366268127,1750169440443,-312.43943744,0.000159,2]
[366268130,1750169440454,-312.43943744,0.000159,2]
[366268132,1750169440464,-312.43943744,0.00015914,2]
[366268134,1750169440475,-2919.75940895,0.00015954,2]
[366268136,1750169440486,-4957.27065414,0.00015969,2]
[366268138,1750169440499,-5000.0,0.00016,2]
[366268140,1750169440510,-43086.3420408,0.00016,2]
[366268142,1750169440522,-7285.0,0.00016,2]
[366268145,1750169440533,-3027.79050709,0.00016009,2]
[366268147,1750169440543,-353.33789906,0.00016014,2]
[366268149,1750169440554,-230.7904659,0.00016023,2]
[366268151,1750169440565,-312.43943744,0.00016061,2]
[366268153,1750169440577,-3139.81875585,0.00016064,2]
[366268155,1750169440588,-201.0,0.00016097,6]
[366268157,1750169440599,-364.76,0.00016107,2]
[366268160,1750169440610,-584.1723204,0.00016115,2]
[366268162,1750169440621,-150.0,0.00016116,2]
[366268164,1750169440632,-150.0,0.00016116,2]
[366268166,1750169440642,-150.0,0.00016116,2]
[366268168,1750169440653,-150.0,0.00016116,2]
[366268170,1750169440664,-9999.99,0.00016116,2]
[366268172,1750169440676,-3255.99204981,0.00016119,2]
[366268175,1750169440687,-150.101,0.0001613,2]
[366268177,1750169440698,-150.0,0.0001613,2]
[366268179,1750169440709,-150.0,0.0001613,2]
[366268181,1750169440720,-155.314,0.0001613,2]
[366268183,1750169440731,-3333.0,0.0001613,2]
[366268185,1750169440744,-948.096,0.0001613,2]
[366268187,1750169440755,-637.0,0.0001613,2]
[366268189,1750169440767,-802.0,0.0001613,2]
[366268192,1750169440778,-1277.0,0.0001613,2]
[366268194,1750169440788,-590.0,0.0001613,2]
[366268196,1750169440799,-558.0,0.0001613,2]
[366268198,1750169440810,-2003.0,0.0001613,2]
[366268200,1750169440821,-928.0,0.0001613,2]
[366268202,1750169440831,-1674.0,0.0001613,2]
[366268204,1750169440843,-150.0,0.00016152,2]
[366268207,1750169440854,-150.0,0.00016162,2]
[366268209,1750169440864,-3376.46375566,0.00016174,2]
[366268211,1750169440874,-4957.27065414,0.00016176,2]
[366268213,1750169440885,-150.0,0.00016193,2]
[366268215,1750169440895,-312.43943744,0.00016208,2]
[366268217,1750169440906,-1000.0,0.00016224,2]
[366268219,1750169440917,-3501.39291462,0.00016229,2]
[366268221,1750169440928,-168.0,0.00016238,2]
[366268224,1750169440939,-476.65899016,0.00016259,2]
[366268227,1750169440951,-167.95710465,0.00016259,2]
[366268229,1750169440962,-200.0,0.00016277,2]
[366268231,1750169440974,-200.0,0.00016279,2]
[366268233,1750169440986,-301.9,0.0001628,2]
[366268235,1750169441002,-650.73159993,0.00016284,2]
[366268238,1750169441014,-3630.94445246,0.00016284,2]
[366268240,1750169441027,-200.0,0.00016284,2]
[366268242,1750169441039,-150.0,0.00016285,2]
[366268244,1750169441051,-150.0,0.00016286,2]
[366268246,1750169441063,-650.73159993,0.00016286,2]
[366268248,1750169441075,-200.0,0.00016288,2]
[366268251,1750169441086,-650.73159993,0.00016292,2]
[366268253,1750169441098,-168.0,0.000163,2]
[366268255,1750169441110,-1434.00394857,0.00016301,2]
[366268257,1750169441121,-650.73159993,0.00016302,2]
[366268259,1750169441134,-200.0,0.00016306,2]
[366268261,1750169441145,-200.0,0.0001631,2]
[366268263,1750169441157,-200.0,0.00016312,2]
[366268265,1750169441167,-200.0,0.00016323,2]
[366268267,1750169441179,-650.73159993,0.00016324,2]
[366268270,1750169441190,-200.0,0.00016325,2]
[366268272,1750169441201,-1434.00394857,0.00016331,2]
[366268273,1750169441216,-150.0,0.00016332,2]
[366268274,1750169441227,-200.0,0.00016335,2]
[366268275,1750169441239,-185.41080233,0.00016338,2]
[366268276,1750169441260,-150.0,0.00016338,2]
[366268277,1750169441272,-200.0,0.00016339,2]
[366268278,1750169441286,-3765.2893972,0.00016339,2]
[366268279,1750169441300,-200.0,0.0001634,2]
[366268281,1750169441312,-200.0,0.00016345,2]
[366268283,1750169441323,-1434.00394857,0.00016347,2]
[366268285,1750169441335,-650.73159993,0.00016348,2]
[366268288,1750169441347,-200.0,0.0001635,2]
[366268290,1750169441358,-1434.00394857,0.00016354,2]
[366268292,1750169441370,-312.43943744,0.00016355,2]
[366268294,1750169441382,-1000.0,0.00016363,2]
[366268296,1750169441393,-650.73159993,0.00016364,2]
[366268298,1750169441404,-200.0,0.00016368,2]
[366268300,1750169441416,-200.0,0.00016369,2]
[366268303,1750169441427,-200.0,0.0001637,2]
[366268305,1750169441439,-200.0,0.00016371,2]
[366268307,1750169441451,-650.73159993,0.00016375,2]
[366268309,1750169441463,-200.0,0.00016375,2]
[366268311,1750169441475,-1434.00394857,0.00016376,2]
[366268314,1750169441486,-331.1722857,0.00016379,2]
[366268316,1750169441503,-4957.27065414,0.00016383,2]
[366268318,1750169441514,-1434.00394857,0.00016385,2]
[366268320,1750169441526,-1434.00394857,0.00016385,2]
[366268323,1750169441537,-200.0,0.00016386,2]
[366268325,1750169441548,-1434.00394857,0.00016387,2]
[366268327,1750169441559,-200.0,0.0001639,2]
[366268329,1750169441570,-200.0,0.00016392,2]
[366268331,1750169441581,-200.0,0.00016395,2]
[366268333,1750169441593,-200.0,0.000164,2]
[366268336,1750169441604,-2161.594645,0.000164,2]
[366268338,1750169441615,-6285.24858596,0.000164,2]
[366268340,1750169441626,-150.94114604,0.00016402,2]
[366268342,1750169441637,-490.0,0.00016438,2]
[366268344,1750169441648,-490.0,0.00016438,2]
[366268346,1750169441659,-490.0,0.00016438,2]
[366268348,1750169441671,-490.0,0.00016438,2]
[366268350,1750169441683,-493.3466956,0.00016438,2]
[366268353,1750169441695,-490.0,0.00016438,2]
[366268355,1750169441706,-490.96833974,0.00016438,2]
[366268357,1750169441718,-490.0,0.00016438,2]
[366268359,1750169441730,-482.11684521,0.00016438,2]
[366268361,1750169441747,-490.0,0.00016438,2]
[366268363,1750169441758,-490.0,0.00016438,2]
[366268365,1750169441770,-490.0,0.00016438,2]
[366268368,1750169441782,-474.4062018,0.00016438,2]
[366268370,1750169441793,-490.0,0.00016438,2]
[366268372,1750169441804,-504.79500773,0.00016438,2]
[366268374,1750169441816,-161.78353957,0.00016438,2]
[366268376,1750169441827,-151.0,0.00016438,2]
[366268378,1750169441839,-151.0,0.00016438,2]
[366268381,1750169441850,-171.296575,0.00016438,2]
[366268383,1750169441861,-490.0,0.00016438,2]
[366268385,1750169441872,-490.0,0.00016438,2]
[366268387,1750169441883,-151.0,0.00016438,2]
[366268389,1750169441895,-171.296575,0.00016438,2]
[366268391,1750169441906,-490.0,0.00016438,2]
[366268393,1750169441917,-490.69535708,0.00016438,2]
[366268395,1750169441928,-151.0,0.00016438,2]
[366268398,1750169441939,-490.0,0.00016438,2]
[366268400,1750169441950,-151.0,0.00016438,2]
[366268402,1750169441962,-490.0,0.00016438,2]
[366268404,1750169441972,-490.0,0.00016438,2]
[366268406,1750169441984,-490.0,0.00016438,2]
[366268408,1750169441999,-490.0,0.00016438,2]
[366268410,1750169442010,-490.0,0.00016438,2]
[366268412,1750169442021,-490.0,0.00016438,2]
[366268415,1750169442032,-500.0,0.00016438,2]
[366268417,1750169442043,-490.0,0.00016438,2]
[366268419,1750169442055,-500.0,0.00016438,2]
[366268421,1750169442066,-500.0,0.00016438,2]
[366268423,1750169442078,-490.0,0.00016438,2]
[366268425,1750169442090,-490.0,0.00016438,2]
[366268427,1750169442101,-490.0,0.00016438,2]
[366268430,1750169442112,-490.0,0.00016438,2]
[366268432,1750169442124,-151.0,0.00016438,2]
[366268468,1750169442544,-490.0,0.00016438,2]
[366268469,1750169442563,-490.0,0.00016438,2]
[366268470,1750169442577,-490.0,0.00016438,2]
[366268471,1750169442588,-390.0,0.00016438,2]
[366268472,1750169442611,-490.0,0.00016438,2]
[366268474,1750169442622,-429.77007284,0.00016438,2]
[366268476,1750169442640,-490.0,0.00016438,2]
[366268478,1750169442651,-490.0,0.00016438,2]
[366268480,1750169442669,-490.0,0.00016438,2]
[366268481,1750169442682,-262.8798,0.00016438,2]
[366268484,1750169442693,-490.0,0.00016438,2]
[366268486,1750169442703,-490.0,0.00016438,2]
[366268488,1750169442713,-490.0,0.00016438,2]
[366268490,1750169442724,-490.0,0.00016438,2]
[366268492,1750169442734,-490.0,0.00016438,2]
[366268494,1750169442748,-490.0,0.00016438,2]
[366268496,1750169442759,-490.0,0.00016438,2]
[366268498,1750169442769,-490.0,0.00016438,2]
[366268500,1750169442779,-490.0,0.00016438,2]
[366268502,1750169442790,-490.0,0.00016438,2]
[366268504,1750169442800,-490.3903839,0.00016438,2]
[366268506,1750169442810,-490.0,0.00016438,2]
[366268508,1750169442820,-490.0,0.00016438,2]
[366268510,1750169442831,-490.0,0.00016438,2]
[366268512,1750169442841,-151.314422,0.00016438,2]
[366268514,1750169442851,-490.0,0.00016438,2]
[366268516,1750169442861,-455.11949549,0.00016438,2]
[366268518,1750169442871,-490.0,0.00016438,2]
[366268520,1750169442882,-490.0,0.00016438,2]
[366268522,1750169442892,-490.0,0.00016438,2]
[366268525,1750169442903,-490.0,0.00016438,2]
[366268527,1750169442912,-490.0,0.00016438,2]
[366268529,1750169442922,-490.0,0.00016438,2]
[366268531,1750169442932,-490.0,0.00016438,2]
[366268533,1750169442943,-490.0,0.00016438,2]
[366268535,1750169442953,-490.0,0.00016438,2]
[366268537,1750169442963,-151.0,0.00016438,2]
[366268539,1750169442973,-490.0,0.00016438,2]
[366268541,1750169442983,-490.0,0.00016438,2]
[366268543,1750169442995,-769.18,0.00016438,2]
[366268545,1750169443005,-490.0,0.00016438,2]
[366268547,1750169443015,-490.0,0.00016438,2]
[366268549,1750169443025,-490.0,0.00016438,2]
[366268551,1750169443035,-490.0,0.00016438,2]
[366268553,1750169443045,-490.0,0.00016438,2]
[366268555,1750169443055,-490.0,0.00016438,2]
[366268557,1750169443065,-490.0,0.00016438,2]
[366268559,1750169443075,-490.0,0.00016438,2]
[366268561,1750169443084,-490.0,0.00016438,2]
[366268563,1750169443095,-490.0,0.00016438,2]
[366268565,1750169443104,-490.0,0.00016438,2]
[366268567,1750169443115,-490.0,0.00016438,2]
[366268569,1750169443124,-490.0,0.00016438,2]
[366268571,1750169443134,-360.97057138,0.00016438,2]
[366268573,1750169443144,-490.0,0.00016438,2]
[366268575,1750169443155,-490.0,0.00016438,2]
[366268577,1750169443165,-490.0,0.00016438,2]
[366268579,1750169443175,-573.35,0.00016438,2]
[366268581,1750169443186,-490.0,0.00016438,2]
[366268583,1750169443196,-490.0,0.00016438,2]
[366268586,1750169443211,-496.15468185,0.00016438,2]
[366268588,1750169443222,-490.0,0.00016438,2]
[366268590,1750169443232,-490.0,0.00016438,2]
[366268592,1750169443244,-490.0,0.00016438,2]
[366268595,1750169443255,-490.0,0.00016438,2]
[366268598,1750169443265,-490.0,0.00016438,2]
[366268600,1750169443275,-490.0,0.00016438,2]
[366268602,1750169443285,-490.0,0.00016438,2]
[366268604,1750169443296,-490.0,0.00016438,2]
[366268606,1750169443308,-490.0,0.00016438,2]
[366268608,1750169443318,-490.0,0.00016438,2]
[366268610,1750169443327,-490.0,0.00016438,2]
[366268612,1750169443338,-490.0,0.00016438,2]
[366268615,1750169443347,-536.81966322,0.00016438,2]
[366268617,1750169443357,-205.15061738,0.00016438,2]
[366268619,1750169443367,-352.17,0.00016438,2]
[366268621,1750169443377,-490.0,0.00016438,2]
[366268623,1750169443388,-490.0,0.00016438,2]
[366268625,1750169443397,-490.0,0.00016438,2]
[366268627,1750169443407,-442.7023316,0.00016438,2]
[366268629,1750169443417,-490.0,0.00016438,2]
[366268632,1750169443428,-490.0,0.00016438,2]
[366268634,1750169443438,-490.0,0.00016438,2]
[366268636,1750169443447,-490.0,0.00016438,2]
[366268638,1750169443457,-490.0,0.00016438,2]
[366268640,1750169443467,-724.27,0.00016438,2]
[366268642,1750169443477,-372.29246139,0.00016438,2]
[366268644,1750169443487,-490.0,0.00016438,2]
[366268646,1750169443500,-490.0,0.00016438,2]
[366268648,1750169443511,-490.0,0.00016438,2]
[366268650,1750169443522,-490.0,0.00016438,2]
[366268652,1750169443532,-665.44,0.00016438,2]
[366268654,1750169443542,-490.0,0.00016438,2]
[366268656,1750169443552,-490.0,0.00016438,2]
[366268658,1750169443563,-490.0,0.00016438,2]
[366268660,1750169443573,-1146.38,0.00016438,2]
[366268662,1750169443583,-151.0,0.00016438,2]
[366268664,1750169443593,-490.0,0.00016438,2]
[366268666,1750169443603,-490.0,0.00016438,2]
[366268668,1750169443613,-490.0,0.00016438,2]
[366268670,1750169443623,-490.0,0.00016438,2]
[366268672,1750169443632,-490.0,0.00016438,2]
[366268674,1750169443642,-490.0,0.00016438,2]
[366268676,1750169443652,-490.0,0.00016438,2]
[366268678,1750169443661,-490.0,0.00016438,2]
[366268680,1750169443671,-480.0,0.00016438,2]
[366268682,1750169443681,-490.0,0.00016438,2]
[366268684,1750169443692,-151.0,0.00016438,2]
[366268686,1750169443701,-490.0,0.00016438,2]
[366268687,1750169443711,-151.0,0.00016438,2]
[366268688,1750169443721,-490.0,0.00016438,2]
[366268689,1750169443731,-490.0,0.00016438,2]
[366268690,1750169443741,-490.0,0.00016438,2]
[366268691,1750169443752,-490.0,0.00016438,2]
[366268692,1750169443762,-552.11363356,0.00016438,2]
[366268693,1750169443773,-564.56,0.00016438,2]
[366268694,1750169443783,-490.0,0.00016438,2]
[366268696,1750169443794,-490.0,0.00016438,2]
[366268697,1750169443803,-901.84,0.00016438,2]
[366268700,1750169443814,-490.0,0.00016438,2]
[366268702,1750169443823,-490.0,0.00016438,2]
[366268704,1750169443833,-433.19132958,0.00016438,2]
[366268706,1750169443843,-490.0,0.00016438,2]
[366268709,1750169443853,-490.0,0.00016438,2]
[366268711,1750169443863,-490.0,0.00016438,2]
[366268713,1750169443873,-151.853439,0.00016438,2]
[366268715,1750169443883,-151.588707,0.00016438,2]
[366268717,1750169443893,-490.0,0.00016438,2]
[366268719,1750169443903,-490.0,0.00016438,2]
[366268721,1750169443913,-490.0,0.00016438,2]
[366268723,1750169443923,-151.0,0.00016438,2]
[366268725,1750169443933,-490.0,0.00016438,2]
[366268727,1750169443943,-490.0,0.00016438,2]
[366268729,1750169443953,-490.0,0.00016438,2]
[366268731,1750169443963,-490.0,0.00016438,2]
[366268733,1750169443972,-490.0,0.00016438,2]
[366268735,1750169443982,-490.0,0.00016438,2]
[366268737,1750169443993,-490.0,0.00016438,2]
[366268739,1750169444003,-151.0,0.00016438,2]
[366268741,1750169444014,-490.0,0.00016438,2]
[366268743,1750169444024,-490.0,0.00016438,2]
[366268745,1750169444034,-490.0,0.00016438,2]
[366268747,1750169444044,-513.91427041,0.00016438,2]
[366268749,1750169444054,-151.0,0.00016438,2]
[366268751,1750169444063,-151.0,0.00016438,2]
[366268753,1750169444073,-490.0,0.00016438,2]
[366268755,1750169444082,-490.0,0.00016438,2]
[366268757,1750169444093,-151.0,0.00016438,2]
[366268759,1750169444102,-490.0,0.00016438,2]
[366268761,1750169444112,-490.0,0.00016438,2]
[366268763,1750169444122,-490.0,0.00016438,2]
[366268765,1750169444131,-490.0,0.00016438,2]
[366268767,1750169444141,-490.0,0.00016438,2]
[366268769,1750169444151,-490.0,0.00016438,2]
[366268771,1750169444160,-490.0,0.00016438,2]
[366268773,1750169444170,-490.0,0.00016438,2]
[366268775,1750169444180,-907.95,0.00016438,2]
[366268777,1750169444189,-490.0,0.00016438,2]
[366268779,1750169444199,-490.0,0.00016438,2]
[366268781,1750169444210,-424.325628,0.00016438,2]
[366268783,1750169444222,-490.0,0.00016438,2]
[366268785,1750169444232,-151.0,0.00016438,2]
[366268787,1750169444242,-424.325628,0.00016438,2]
[366268789,1750169444253,-748.02,0.00016438,2]
[366268791,1750169444262,-490.0,0.00016438,2]
[366268793,1750169444272,-490.0,0.00016438,2]
[366268795,1750169444282,-490.0,0.00016438,2]
[366268796,1750169444295,-296.26961898,0.00016438,2]
[366268797,1750169444306,-490.0,0.00016438,2]
[366268799,1750169444316,-490.0,0.00016438,2]
[366268800,1750169444326,-490.0,0.00016438,2]
[366268802,1750169444336,-490.0,0.00016438,2]
[366268803,1750169444346,-151.0,0.00016438,2]
[366268805,1750169444356,-490.0,0.00016438,2]
[366268806,1750169444366,-490.0,0.00016438,2]
[366268807,1750169444377,-491.2364745,0.00016438,2]
[366268809,1750169444387,-255.37,0.00016438,2]
[366268810,1750169444397,-151.0,0.00016438,2]
[366268812,1750169444406,-490.0,0.00016438,2]
[366268813,1750169444416,-490.0,0.00016438,2]
[366268815,1750169444426,-490.0,0.00016438,2]
[366268816,1750169444437,-490.0,0.00016438,2]
[366268818,1750169444446,-490.0,0.00016438,2]
[366268819,1750169444456,-490.0,0.00016438,2]
[366268821,1750169444466,-572.91,0.00016438,2]
[366268822,1750169444476,-490.0,0.00016438,2]
[366268824,1750169444486,-490.0,0.00016438,2]
[366268825,1750169444497,-490.0,0.00016438,2]
[366268827,1750169444507,-490.0,0.00016438,2]
[366268828,1750169444518,-490.0,0.00016438,2]
[366268830,1750169444528,-151.0,0.00016438,2]
[366268831,1750169444538,-490.0,0.00016438,2]
[366268833,1750169444549,-490.0,0.00016438,2]
[366268834,1750169444558,-490.0,0.00016438,2]
[366268836,1750169444568,-490.0,0.00016438,2]
[366268838,1750169444578,-704.92,0.00016438,2]
[366268839,1750169444588,-490.0,0.00016438,2]
[366268841,1750169444598,-490.0,0.00016438,2]
[366268842,1750169444607,-490.0,0.00016438,2]
[366268844,1750169444617,-490.0,0.00016438,2]
[366268846,1750169444627,-490.0,0.00016438,2]
[366268847,1750169444636,-490.0,0.00016438,2]
[366268849,1750169444647,-535.17,0.00016438,2]
[366268850,1750169444656,-764.9,0.00016438,2]
[366268852,1750169444666,-490.0,0.00016438,2]
[366268854,1750169444675,-151.0,0.00016438,2]
[366268855,1750169444684,-151.0,0.00016438,2]
[366268857,1750169444694,-490.0,0.00016438,2]
[366268858,1750169444704,-559.23,0.00016438,2]
[366268860,1750169444714,-490.0,0.00016438,2]
[366268861,1750169444724,-490.0,0.00016438,2]
[366268863,1750169444734,-538.54,0.00016438,2]
[366268865,1750169444745,-225.911074,0.00016438,2]
[366268866,1750169444755,-490.0,0.00016438,2]
[366268868,1750169444764,-490.0,0.00016438,2]
[366268869,1750169444774,-151.0,0.00016438,2]
[366268871,1750169444784,-151.0,0.00016438,2]
[366268872,1750169444794,-490.0,0.00016438,2]
[366268874,1750169444803,-490.0,0.00016438,2]
[366268876,1750169444814,-151.0,0.00016438,2]
[366268877,1750169444823,-151.0,0.00016438,2]
[366268879,1750169444832,-151.0,0.00016438,2]
[366268880,1750169444843,-151.0,0.00016438,2]
[366268882,1750169444854,-151.0,0.00016438,2]
[366268883,1750169444863,-151.0,0.00016438,2]
[366268885,1750169444874,-490.0,0.00016438,2]
[366268887,1750169444884,-151.0,0.00016438,2]
[366268888,1750169444893,-490.0,0.00016438,2]
[366268890,1750169444903,-156.84,0.00016438,2]
[366268891,1750169444912,-151.0,0.00016438,2]
[366268893,1750169444922,-151.0,0.00016438,2]
[366268894,1750169444931,-151.0,0.00016438,2]